[Event "WchT 7th"]
[Site "Bursa"]
[Date "2010.01.06"]
[Round "2.1"]
[White "Kotronias, Vasilios"]
[Black "Jakovenko, Dmitrij"]
[Result "0-1"]
[ECO "C67"]
[WhiteElo "2599"]
[BlackElo "2730"]
[Annotator "Kritz,L"]
[PlyCount "86"]
[EventDate "2010.01.05"]
[EventType "team-tourn"]
[EventRounds "9"]
[EventCountry "TUR"]
[SourceTitle "CBM 134"]
[Source "ChessBase"]
[SourceDate "2010.01.18"]
[SourceVersion "1"]
[SourceVersionDate "2010.01.18"]
[SourceQuality "1"]
[WhiteTeam "Greece"]
[BlackTeam "Russia"]
[WhiteTeamCountry "GRE"]
[BlackTeamCountry "RUS"]
[TimeControl "40/5400+30:1800+30"]

1. e4 e5 2. Nf3 Nc6 3. Bb5 Nf6 4. O-O Nxe4 5. d4 Nd6 6. Bxc6 dxc6 7. dxe5 Nf5
8. Qxd8+ Kxd8 9. Nc3 Ke8 ({Eine andere prinzipielle Fortsetzung ist} 9... Bd7
10. h3 (10. b3 Kc8 11. Bb2 Be7 12. Rad1 a5 $132) 10... h6 11. b3 Kc8 12. Bb2 b6
13. Rad1 Ne7 14. Rd2 c5 15. Rfd1 Be6 $132) 10. h3 h5 (10... Be7 {ist die
solideste Fortsetzung.} 11. g4 (11. Bg5 Bxg5 12. Nxg5 h6 $1 {Es is wichtig,
den gegnerischen Springer gleich zu vertreiben.} 13. Nf3 (13. Nge4 b6 14. Rfd1
Ke7 15. Kh2 h5 16. Ne2 Re8 17. Nf4 Kf8 18. Nxh5 Rxe5 19. Nhg3 Be6 20. Rd2 {
1/2-1/2 Anand - Kramnik (Leon, 2002). Ich denke, Schwarz steht sogar etwas
besser hier. Der weiße h-Bauer ist sehr weit von dem kritischen Feld h8
entfernt, während die schwarzen Türme mit dem Läufer am Damenflügel für einige
Unannehmlichkeiten sorgen könnten.}) 13... h5 14. Rad1 (14. Ne2 Ke7 15. Nf4 g6
$1 16. Rad1 Ng7 17. Rfe1 Rd8 18. Rxd8 Kxd8 19. Ng5 Ke7 20. Rd1 a5 21. a4 Bf5
$132 {Timman - Kritz (Amsterdam, 2002)}) 14... Ke7 15. Ng5 Be6 16. Nxe6 fxe6
17. Rd3 Rad8 18. Rfd1 Rxd3 19. Rxd3 h4 $11 {Shirov - Alekseev (Moscow, 2008).
Wie üblich in dieser Stellung: der schwarze Bauer h4 neutralisiert die weiße
Überlegenheit am Königsflügel und die Stellung ist ausgeglichen.}) 11... Nh4
12. Nxh4 Bxh4 13. Kg2 h5 14. f3 Be6 ({Eine andere Verteidigungsmethode ist} 
14... a5 {um die weißen Bauern zu zwingen, weiße Felder einzunehmen.} 15. a4 b6
16. Rd1 Be7 17. Ne2 Bd7 18. Bf4 c5 19. Bg3 Rd8 20. c4 Bc8 21. b3 Rxd1 22. Rxd1
hxg4 23. hxg4 Bd8 $14 {Kotronias - Kritz (Port Erin, 2007). Weiß hat einen
symbolischen Vorteil und Schwarz muss die ganze Partie leiden, doch bei
korrekter Verteidigung kann man Remis halten. Es ist jedoch zu empfehlen, wie
Wang Yue gegen Adams zu spielen - dort ist es einfacher, das Remis zu
erreichen.}) 15. Be3 Be7 $11 {Wie die letzten Analysen zeigen, ist die
Stellung ausgeglichen.}) (10... Ne7 {Zuletzt hat dieser Zug wieder an
Popularität gewonnen, aber ich verstehe nicht, warum. Das ist eine
verschlechterte Version der 10....Be7-Variante - Schwarz steht ebenfalls
passiv, gibt dabei Weiß Chancen zu spielen. Dagegen bringt 10....Be7 die
Partie bei normalem Spielverlauf zum unausweichlichen Remisresultat.} 11. Ne4
Ng6 12. Re1 h6 13. Bd2 $14 {Weiß hat sich entwickelt, Schwarz steht immer noch
auf der Grundreihe.}) 11. Rd1 $2 {Dieser Turm hat nichts zu suchen auf der
d-Linie. Schwarz bekommt so viel Zeit wie er will, um seine Pläne zu
realisieren.} (11. Bg5 {Der logische Versuch, die Schwächung des Feldes g5
auszunutzen.} Be6 (11... Be7 {ist ebenfalls gut spielbar} 12. Ne2 Be6 13. Nf4
Bd5 14. Bxe7 Kxe7 15. Ng5 Nd4 16. Rfd1 Ne6 $1 (16... Nxc2 17. Nxd5+ cxd5 18.
Rac1 $1 $18) 17. Ngxe6 Bxe6 18. h4 Rad8 19. f3 g6 20. Kf2 Bf5 21. c3 f6 22.
exf6+ Kxf6 $11 {1/2-1/2 Hracek,Z (2629)-Kholmov,R (2464)/Pardubice CZE 1999 
(37)}) 12. Rad1 Be7 13. Rd2 Rd8 $1 {Korrekte Entscheidung! Schwarz muss so
schnell wie möglich den Druck der weißen Türme auf der d-Linie neutralisieren.}
(13... Bxg5 14. Nxg5 Rd8 (14... h4 15. Rfd1 $14) 15. Rxd8+ Kxd8 16. Nxe6+ fxe6
17. g3 $1 $14 {Weiß hat h4 verhindert und damit die Beweglichkeit seiner
Bauernstruktur beibehalten. Das garantiert ihm einen kleinen Vorteil.}) 14.
Rfd1 Rxd2 15. Rxd2 h4 $1 $11 {Leko - Alekseev (Elista, 2008). Damit ist der
Königsflügel zugemacht und der weiße Mehrbauer praktisch neutralisiert.}) ({
Wenig bringt} 11. Ne2 Be6 12. Nf4 Bd5 $1 {Schwarz bekommt eine problemlose
Stellung.} 13. Nxd5 (13. Ng5 Be7 $15) 13... cxd5 14. Bf4 c6 15. g3 Be7 16. Rfe1
Rg8 17. g4 hxg4 18. hxg4 Nh6 19. Nh2 g5 20. Be3 Kd7 21. Rad1 Ke6 $132 {Bruzon
- Miles (Varadero, 2000)}) 11... Be7 {Ein sicherer Zug.} ({Auch} 11... h4 {
sieht nicht schlecht aus.} 12. Bg5 Be7 13. Rd2 Be6 14. Rad1 Rh5 15. Bxe7 Nxe7
$132) 12. Ne2 {Die Überführung des Springers über e2 bringt wie immer nichts.
Man hätte besser zurück zu klassischen Stellungen kommen sollen.} (12. g3 Be6
13. Ng5 Rd8 14. Rxd8+ Bxd8 15. Nxe6 fxe6 16. Ne2 g5 17. Bd2 c5 18. Bc3 c4 $11 {
Inarkiev - Smirnov (Dagomys, 2009)}) (12. Bg5 Be6 13. Rd2 Rd8 $11) 12... Nh4
13. Nxh4 Bxh4 {Die Stellung mit dem Läuferpaar kann Schwarz theoretisch nicht
verlieren, besonders wenn der Bauer schon auf h5 steht und g4 verhindert ist.}
14. Bf4 Be7 (14... Be6 {ist ebenfalls nicht schlimm, aber wozu auf zwei
Ergebnisse spiele, wenn man kostenlos Gegenchancen haben kann?} 15. Nd4 $14 {
Nach dem Nehmen auf e6 wird Weiß einen symbolischen Vorteil haben, das
Endspiel ist jedoch sehr remislich.}) 15. Rd3 $6 {Eine misslungene Provokation.
} (15. Nd4 a6 {Typische Reaktion, wenn man c5 vorbereiten will.} (15... c5 16.
Nb5 Bd8 17. e6 Bxe6 18. Bxc7 $14) 16. e6 (16. c4 c5 17. Nf3 Bf5 $15) 16... Bd6
$1 (16... Bxe6 17. Nxe6 fxe6 18. Bxc7 Rc8 19. Be5 Bf6 20. Bxf6 gxf6 21. Rd6 Ke7
22. Rad1 Rc7 $11) 17. exf7+ Kxf7 $132) 15... Bf5 16. Rb3 $2 {Man sollte sich
besser zurückziehen. Es ist offensichtlich, dass solche Ideen zu nichts Gutem
führen können.} (16. Rd2 Rd8 17. Nd4 Bh7 18. Rad1 $11) 16... Bc5 $1 {Widerlegt
die weißen Pläne.} (16... b6 $2 17. Nd4 Bd7 18. a4 a5 19. e6 fxe6 20. Bxc7 $16)
17. a4 (17. Rxb7 Bb6 {/\Bc8} 18. e6 Kd8 $3 {Das ist vermutlich der Zug, den
Weiß übersehen hatte.} (18... Bxe6 19. Bxc7 Bc8 20. Rb8 Rxb8 21. Bxb8 $16) 19.
exf7 Rf8 $17 {gefolgt von Kc8 oder zuerst Rxf7 und dann Kc8.}) 17... b6 $15 {
Nun ist das Feld d4 unter Kontrolle, Schwarz steht schon mit großem Vorteil da.
} 18. Rg3 Rg8 (18... h4 {führt auch zu gutem Spiel für Schwarz.} 19. Rxg7 Kf8
20. Rg5 Bxc2 $15) 19. Be3 Be7 {Besser wäre wohl das Nehmen und Erobern der
d-Linie.} (19... Bxe3 $5 20. Rxe3 Rd8 21. c3 c5 $15) 20. a5 {Weiß zieht die
ganze Zeit daneben. Er musste sich konsolidieren:} (20. Nd4 Bd7 21. Bf4 (21.
Bg5 $4 h4 $19) 21... g5 22. h4 $1 g4 23. Rc3 c5 24. Nb5 Bxb5 25. axb5 Bxh4 26.
Rca3 $14) 20... Rc8 21. axb6 axb6 {Die Aufgabe der a-Linie ist nicht schlimm -
Weiß kann damit nichts anfangen.} 22. Bg5 $2 {Strategische Aufgabe. Wieder war
Nd4 besser.} (22. Nd4 Be4 23. Bg5 c5 24. Nb5 $11 {Der Bauer c2 ist wegen der
Drohung Nxc7-Ra8+ unantastbar.}) 22... Bxc2 23. Bxe7 Kxe7 24. Rc3 Be4 25. Ng3
Bd5 26. Nxh5 $17 {Diese Stellung entstand forciert als Folge des 22. Zuges von
Weiß. Schwarz hat den besseren König im Endspiel, und der Läufer ist in
solchen Stellungen natürlich viel stärker als der Springer.} c5 {Man muss sein
Spiel spielen - in diesem Fall muss Schwarz seine Bauern am Damenflügel nach
vorne bringen.} 27. g4 {Weiß beschäftigt sich mit demselben.} Ra8 28. Rxa8 Bxa8
29. b4 $2 {Weiss hilft Schwarz, einen Freibauern zu organisieren. Stattdessen
hätte er besser seinen König ins Zentrum gebracht oder f4 gespielt.} (29. f4 g6
30. Nf6 Rd8 31. b4 $1 {Jetzt ist es eine andere Sache - Weiß hat seine Figuren
aktiviert.} Ke6 (31... cxb4 32. Rxc7+ Ke6 33. Kf2 $13) 32. bxc5 b5 33. Kf2 $13)
29... Ke6 30. bxc5 b5 31. c6 (31. f4 Kd5 $19 {Im Vergleich zu 29.f4 steht der
weiße Springer immer noch am Rand, der weiße König auch, dafür dominiert sein
schwarzer Kollege das Zentrum.}) 31... Kd5 32. Rf3 b4 33. Rxf7 b3 $19 {Weiß
hat keine Chance, den schwarzen Bauer aufzuhalten.} 34. Nf4+ Kc4 35. Rd7 b2 36.
Rd1 Rb8 37. Rb1 Bxc6 38. Ne6 Be4 39. Rxb2 Rxb2 40. Nxg7 c5 41. f4 Kd3 42. e6 c4
43. e7 Bc6 0-1

[Event "EU-ch 12th"]
[Site "Aix les Bains"]
[Date "2011.03.25"]
[Round "4"]
[White "Sutovsky, Emil"]
[Black "Grigoryan, Avetik"]
[Result "1-0"]
[ECO "C67"]
[WhiteElo "2692"]
[BlackElo "2608"]
[Annotator "Marchand,A/Primel,D"]
[PlyCount "95"]
[EventDate "2011.03.22"]
[EventType "swiss"]
[EventRounds "11"]
[EventCountry "FRA"]
[SourceTitle "CBM 142 Extra"]
[Source "ChessBase"]
[SourceDate "2011.06.27"]
[SourceVersion "1"]
[SourceVersionDate "2011.06.27"]
[SourceQuality "1"]
[TimeControl "40/5400+30:1800+30"]

1. e4 e5 2. Nf3 Nc6 3. Bb5 Nf6 4. O-O Nxe4 5. d4 Nd6 6. Bxc6 dxc6 7. dxe5 Nf5
8. Qxd8+ Kxd8 9. h3 (9. Nc3) 9... Ke8 10. Nc3 h5 11. Bg5 (11. Bf4) 11... Be7
12. Rad1 Be6 13. b3 Rd8 14. Rxd8+ Kxd8 15. Rd1+ Ke8 16. Bc1 Nh4 $146 ({RR} 
16... f6 17. Ne2 Bd5 18. exf6 gxf6 19. Ne1 Bd6 20. Bb2 Kf7 21. Nc3 Ne7 22. g3
Rg8 23. Nxd5 cxd5 24. Ng2 c6 25. c4 Ke6 26. Ne3 f5 27. cxd5+ cxd5 28. Kf1 f4
29. gxf4 Bxf4 30. Re1 Kd7 31. Bf6 {Vocaturo,D (2570)-Bluvshtein,M (2590)/Wijk
aan Zee 2011/CBM 141/1-0 (73)}) 17. Nxh4 Bxh4 18. Be3 Bf5 19. Rd2 Be7 20. Ne2
a6 21. Nd4 Bc8 22. Nf3 Bf5 23. Bg5 $1 Bxg5 (23... c5) (23... a5) 24. Nxg5 Ke7
25. f4 a5 26. Nf3 c5 27. Nh4 (27. Kf2 a4 $5) 27... Bd7 28. f5 $14 Rh6 29. Rd3
Rb6 $6 (29... c4 $5) 30. Rg3 {[%csl Gf5,Rg7,Gh4]} Rb4 (30... Kf8 {Plus souple})
31. c4 {[%csl Rb4]} Kf8 32. Rg5 a4 (32... b5 33. Rxh5 bxc4 34. e6) 33. Rxh5 Kg8
34. Rg5 Rxb3 $4 (34... Kf8) 35. e6 $1 {Le coup intermédaire oublié par les
Noirs} (35. axb3 $4 a3 {[%csl Rg5]}) 35... Rb1+ 36. Kh2 Be8 37. f6 $18 g6 38.
e7 c6 39. Nf5 Rd1 40. Ng7 Bd7 41. Re5 Rd6 42. e8=Q+ Bxe8 43. Nxe8 Rd8 44. Nc7
Rc8 45. Re7 Kf8 46. h4 Rb8 47. a3 b5 48. Na6 1-0

[Event "EU-ch 12th"]
[Site "Aix les Bains"]
[Date "2011.03.31"]
[Round "9"]
[White "Inarkiev, Ernesto"]
[Black "Hammer, Jon Ludvig"]
[Result "1-0"]
[ECO "C67"]
[WhiteElo "2674"]
[BlackElo "2606"]
[Annotator "Marchand,A/Primel,D"]
[PlyCount "157"]
[EventDate "2011.03.22"]
[EventType "swiss"]
[EventRounds "11"]
[EventCountry "FRA"]
[SourceTitle "CBM 142 Extra"]
[Source "ChessBase"]
[SourceDate "2011.06.27"]
[SourceVersion "1"]
[SourceVersionDate "2011.06.27"]
[SourceQuality "1"]
[TimeControl "40/5400+30:1800+30"]

1. e4 e5 2. Nf3 Nc6 3. Bb5 Nf6 4. O-O (4. d3 {La grande mode actuelle pour
éviter le mur de Berlin} Bc5 5. c3 (5. O-O) 5... O-O 6. O-O d6 7. h3 a6 8. Bxc6
bxc6 9. Re1 Re8 10. Nbd2 d5 $132) 4... Nxe4 5. d4 Nd6 {La variante du Mur de
Berlin qui donne des positions très techniques} (5... Be7 {L'alternative se
joue moins aujourd'hui} 6. Qe2 Nd6 7. Bxc6 bxc6 8. dxe5 Nb7 (8... Nf5 9. Qe4
$14)) (5... a6 $5 {La recommandation de Keres ne semble pas poser trop de
problèmes aux Noirs pour égaliser} 6. Bxc6 dxc6 7. Qe2 Bf5 $132) 6. Bxc6 dxc6
7. dxe5 Nf5 8. Qxd8+ Kxd8 9. Nc3 (9. h3 {Joué par le norvégien а la ronde 6}
Bd7 {Sutovsky,E (2692)-Hammer,J (2606) EU-ch 12th Aix-Les-Bains 2011 (6) 0-1})
9... Bd7 (9... Ne7 10. h3 Ng6 (10... h6)) (9... Ke8 {La grande ligne} 10. b3 (
10. h3) 10... a5 11. Bb2 Bb4 12. Ne4 $1 {[%csl Gb2,Gc8];Habu,Y (2342)-Marcelin,
C (2452) 2ème tournoi de maîtres NAO 2002 (3) 1-0 (Joël LAUTIER) Il est connu
que l'echange du fou de cases noires contre un cavalier blanc facilite la
defense des noirs, puisqu'ils obtiennent aussitot une finale avec fous de
couleur opposee.}) (9... h6 10. h3 Bd7) 10. Rd1 {94} (10. h3 Kc8 (10... h6 {
La grande ligne}) (10... b6 11. Rd1 (11. b3 Kc8 12. Bb2 h5 13. Rad1 Be7 14. Bc1
a5 15. Bg5 Bb4 16. Ne2 a4 (16... c5 $5 {Movsesian}) 17. c3 {Movsesian,S (2702)
-Leko,P (2720) RUS-chT 19th 2012 (7) 1-0}) 11... Kc8 12. g4 Ne7 13. Ng5 f5 14.
e6 (14. Nf7 $5 {Cabrilo inf 111} Rg8 15. Re1) 14... Be8 {Navara,D (2708)
-Hammer,J (2647) Tata Steel-B 73rd 2011 (4) 1/2}) 11. b3 b6 12. Rd1 Be7 13. Bg5
h6 14. Bxe7 Nxe7 15. Kh2 c5 {Ivanchuk,V (2739)-Hammer,J (2636) GRE-chT Div-A
38th 2010 (7) 1-0} (15... Re8 $142 $1 16. Rd3 c5 17. g4 {Kotronias "the
Grandmaster battle manual"})) 10... Kc8 {93} (10... Ke8 11. h3) 11. Ng5 {
[%csl Rf7]} (11. h3 b6 12. g4 Ne7 13. Ng5 f5 14. e6 {Navara,D (2708)-Hammer,J 
(2647) Tata Steel-B 73rd 2011 (4) 1/2} (14. Nf7 $5 Rg8 15. Re1 {Cabrilo inf 111
})) 11... Be8 12. Nge4 {94} (12. b3 b6 13. Bb2 Be7 14. Nge4 Kb7 15. Rd3 Rd8 16.
Rad1 ({RR} 16. Rxd8 Bxd8 17. Rd1 Kc8 18. g4 Nh4 19. f4 h5 20. h3 hxg4 21. hxg4
Bd7 22. Nf2 f5 23. g5 Ng6 24. Ne2 Nf8 25. Kg2 Ne6 26. Kg3 c5 27. c4 Bc6 28. Nc3
a5 29. Nd5 Be8 30. a4 c6 {Bologan,V (2684)-Hammer,J (2636)/Peristeri 2010/0-1 
(44)}) 16... Rxd3 17. Rxd3 h5 18. Bc1) 12... b6 {80 Fin de la préparation des
Noirs} ({RR} 12... h6 13. b3 b6 14. Bb2 Kb7 15. Rd3 a5 16. a4 Ne7 17. Ne2 c5
18. Nf4 Bc6 19. Ng3 Ng6 20. Nfh5 Re8 21. f4 Nh4 22. Rd2 c4 23. bxc4 Bb4 24. Re2
Rhg8 25. Bd4 Bxg2 26. Rxg2 Nf3+ 27. Kh1 {Shukh,N (2438)-Chuprov,D (2520)/
Taganrog 2011/0-1 (52)}) 13. f3 $146 {[%cal Gg1f2] 94 Une préparation maison} (
13. h3 Kb7 14. g4 Ne7 15. Bf4 (15. f4 c5 16. f5 Nc6 17. Bf4 Nd4 18. Rac1 h5)
15... h5 16. f3 c5 17. Kf2 Nc6 18. Nd5 Nd4 19. c3 Ne6 20. Bg3 ({RR} 20. Be3
hxg4 21. hxg4 Rh2+) 20... Bc6 21. Rd2 (21. f4 Rd8 22. c4) 21... hxg4 22. hxg4
c4 23. Kg2 Rd8 24. Rad1 Ba4 25. Re1 Bc6 26. Red1 Ba4 27. Re1 Bc6 {1/2-1/2
Kasparov,G (2827)-Kramnik,V (2797)/Zuerich 2001/[Wedberg]}) (13. b3 c5 14. Bb2
Nd4 15. Rd2 (15. Nd5 Nxc2 16. Rac1 Nb4 17. Nxb4 cxb4 18. Nd6+ Bxd6 19. exd6 c5
20. Re1 (20. Bxg7 Rg8 $132 {[%csl Rg2][%cal Ge8c6]})) 15... Kb7 16. Nd5 Rd8 17.
c4 Bc6 18. Bxd4 cxd4 19. Rxd4 Ba3 {RR} 20. Rd2 Rhe8 21. Re1 f6 22. exf6 Bb4 23.
f7 Rxe4 24. Rxe4 Bxd2 25. Re7 Bxd5 26. Re8 Bxf7 27. Rxd8 Bc3 28. Rd3 Bf6 29. f4
Bg6 30. Rd1 h5 31. Kf2 Bc2 32. Rd2 Bb1 33. Kf3 a5 34. g3 Bc3 {Leko,P (2743)
-Kramnik,V (2770)/Budapest 2001/0-1 (56)}) 13... c5 {[%csl Rd5][%cal Gf5d4] 78}
(13... Kb7 14. Kf2 c5 15. Nd5 Rd8 $6 16. Bg5 $36 {Hou,Y (2605)-Stefanova,A 
(2493) EU-Cup (Women) 17th 2012 (2.4) 1-0}) 14. Nd5 {[%cal Gc2c3] 93} Kb7 {76}
(14... c6 15. Ne3 $14) 15. Kf2 {81 Probablement la fin de la préparation des
Blancs même si c'est la suite logique de la poussée f3} h6 {81} (15... Bc6 $5 {
[%cal Ga8d8] Le P"f7" n'est peut-être pas prenable et l'option d'activer le B
est intéressante.} 16. Ng5 (16. Bg5 h6) (16. g4 Nd4 $132 {[%csl Gd4]}) (16. c4
Nd4 {[%csl Gd4]}) 16... c4 {[%cal Gf8c5]} 17. Nxf7 Bc5+) 16. g4 {45 Joué après
une longue réflexion} (16. a4 $5 {[%cal Ga4a5,Ga5a6]}) 16... Ne7 {62} 17. c4 h5
18. h3 hxg4 19. hxg4 f5 20. exf6 {29} Nxd5 {45} 21. cxd5 Bg6 22. Bf4 $1 $32 {
[%csl Rc7,Gd5,Gh2] 22} Bxe4 {Egalité au temps} 23. fxe4 gxf6 24. Rh1 $1 c4 (
24... Bd6 25. Bxd6 cxd6 {[%csl Re4]}) 25. Rxh8 Bc5+ 26. Kg3 Rxh8 27. Rc1 b5 28.
b3 Ba3 $6 {Quelques coups plus tard le Ba3 sera mal placé} (28... a5 $142 29.
bxc4 b4 $44 {[%csl Gc5] Le sacrifice du P se fait dans des meilleures
conditions que dans la partie}) 29. Rc2 {Les Blancs ont une bonne finale} a5
30. bxc4 {12} b4 {[%csl Ra3] 10} 31. Be3 (31. g5 {[%csl Ge4][%cal Ge4e8]} Rg8)
31... Rh1 32. c5 {[%csl Gc5,Gd5]} a4 {[%csl Gc5,Gd5]} 33. c6+ $1 {[%csl Ra3,
Rb7,Gc6,Rc7][%cal Gd5d6] Les Noirs ont maintenant 02 pièces mal placées} Kc8 {
Malgré le matériel réduit, le K Noir est en danger.} (33... Ka6 {[%csl Ra6,Ge3]
} 34. e5 $1 {[%cal Gd5d6,Gc6c7] Kc8 joué dans la partie a pour but de parer
cette menace e4e5}) 34. Rc5 $1 $40 {[%csl Ra4,Rc8][%cal Gc5b5,Gc5a5] Un fort
coup multifonction:  la R gagne un tempo décisif en menaçant d'un Mat du
couloir pour placer la R derrière le P passé et la position Noire est déjà
critique. C'est une nouvelle illustration du fait que la présence de B de
couleurs opposées favorise l'attaque tant que les R ne sont pas échangées.} b3
35. Ra5 {[%csl Gc6][%cal Ga5a8]} Bd6+ 36. Kg2 Rh2+ 37. Kf3 Rh3+ (37... Rxa2 38.
Ra8#) 38. Ke2 Kd8 39. axb3 axb3 40. Rb5 Rh2+ 41. Kd3 b2 (41... Rg2 42. g5 fxg5
43. Rxb3 Ke7 44. Rb8 {[%cal Gb8d8,Gd8d7]}) 42. g5 $1 Ke7 43. gxf6+ Kxf6 44.
Bd4+ Be5 45. d6 $1 {[%csl Gc6] Une belle technique!} cxd6 46. Bxe5+ dxe5 47.
Rxb2 $1 (47. c7 $2 Rh8 $11 {[%cal Gf6e6,Ge6d7]}) 47... Rxb2 48. c7 Rb3+ 49. Kc2
Rb4 50. c8=Q Rxe4 51. Kd3 $1 {Les espoirs Noirs de construire une forteresse
seront vains car le Pe5 est mal placé. En effet, la finale serait
théoriquement nulle si le P était resté sur sa case d'origine e7 comme l'avait
démontré Philidor} Rd4+ 52. Ke3 Rf4 53. Qc6+ {C'est la grande différence avec
un Pe7 qui aurait permi aux Noirs de ramener le K en 08ème rangée pour annuler.
Dans cette position, le K Noir est contraint de monter en 05ème rangée et les
Blancs ont réalisé la première partie du plan de gain; La seconde plus
difficile sera de gagner un tempo permettant au K Blanc de traverser la 4ème
rangée pour se placer derrière le P noir.} Kf5 54. Qd5 Kf6 55. Qd6+ Kf5 56. Qe7
Re4+ 57. Kf3 Rf4+ 58. Kg3 Rg4+ 59. Kh3 Rd4 {La R n'a que deux cases f4 et d4
disponibles sous peine d'être perdue} 60. Qf7+ Kg5 61. Qe6 Rd3+ {La R va
manquer de protection} (61... Kf4 62. Qg4+ Ke3 63. Qf5 Re4 64. Kg3 Kd4 {
[%cal Ge4f4]} 65. Qd7+ Kc5 (65... Ke3 66. Qd5 {[%csl Re4,Re5]}) 66. Qe6 Kd4 67.
Qd6+) 62. Kg2 Kf4 63. Kf2 Rd2+ 64. Ke1 Rd3 65. Ke2 Re3+ 66. Kd2 Rg3 67. Qf6+
Ke4 68. Qh4+ {Illustrant le problème de la R non protégée} Kf3 69. Kd3 $1 {
Après le passage du K Blanc, la position noire va s'effondrer} Kf2+ 70. Ke4 {
C'est fini} Kg2 71. Kxe5 Ra3 72. Qg4+ Kf2 73. Qd4+ Kf3 74. Qd1+ Kg3 75. Ke4 Kh2
76. Qd2+ Kh3 77. Kf4 Ra4+ 78. Kf3 Ra3+ 79. Kf2 1-0